fUSD/lending_fUSD_20240428
["ID","MTS","AMOUNT","RATE_DAILY","PERIOD"]
[10315,1714327914508,-1475.93,0.00012602,2]
[10316,1714327914523,-1307.66,0.00012602,2]
[10317,1714327914538,-500.0,0.00012602,2]
[10318,1714327914553,-534.39,0.00012602,2]
[10319,1714327914567,-500.0,0.00012602,2]
[10320,1714327914580,-2399.5,0.00012602,2]
[10321,1714327914593,-620.93,0.00012602,2]
[10322,1714327914606,-1929.02,0.00012602,2]
[10323,1714327914619,-4461.74,0.00012602,2]
[10324,1714327914630,-1071.44,0.00012602,2]
[10325,1714327914641,-765.18,0.00012602,2]
[10327,1714327914667,-2344.57,0.00012602,2]
[10328,1714327914681,-500.0,0.00012602,2]
[10329,1714327914696,-500.0,0.00012602,2]
[10330,1714327914709,-654.98,0.00012602,2]
[10331,1714327914720,-5479.7,0.00012602,2]
[10332,1714327914731,-500.0,0.00012602,2]
[10333,1714327914744,-500.0,0.00012602,2]
[10334,1714327914757,-500.0,0.00012602,2]
[10335,1714327914771,-871.78,0.00012602,2]
[10336,1714327914782,-500.0,0.00012602,2]
[10337,1714327914795,-500.0,0.00012602,2]
[10338,1714327914809,-9091.73,0.00012602,2]
[10339,1714327914822,-795.43,0.00012602,2]
[10340,1714327914833,-1384.68,0.00012602,2]
[10341,1714327914845,-2595.55,0.00012602,2]
[10342,1714327914860,-500.0,0.00012602,2]
[10343,1714327914875,-3807.95,0.00012602,2]
[10344,1714327914887,-2250.39,0.00012602,2]
[10345,1714327914899,-596.24,0.00012602,2]
[10346,1714327914911,-500.0,0.00012602,2]
[10347,1714327914923,-28768.8,0.00012602,2]
[10348,1714327914936,-500.0,0.00012602,2]
[10349,1714327914949,-268.95666523,0.00012602,2]
[10350,1714327914962,-62921.46,0.00012602,2]
[10351,1714327914975,-659.19,0.00012602,2]
[10352,1714327914987,-508.0,0.00012602,2]
[10353,1714327915000,-500.0,0.00012602,2]
[10354,1714327915012,-2405.5,0.00012602,2]
[10355,1714327915026,-500.0,0.00012602,2]
[10356,1714327915037,-1929.95,0.00012602,2]
[10357,1714327915051,-2374.97,0.00012602,2]
[10358,1714327915064,-500.0,0.00012602,2]
[10359,1714327915077,-500.0,0.00012602,2]
[10360,1714327915089,-4726.78,0.00012602,2]
[10361,1714327915101,-1671.74,0.00012602,2]
[10363,1714327915125,-16038.69,0.00012602,2]
[10364,1714327915136,-500.0,0.00012602,2]
[10365,1714327915148,-1298.02,0.00012602,2]
[10366,1714327915160,-2260.54,0.00012602,2]
[10367,1714327915172,-792.96,0.00012602,2]
[10368,1714327915185,-1832.42,0.00012602,2]
[10369,1714327915197,-500.0,0.00012602,2]
[10370,1714327915210,-500.0,0.00012602,2]
[10371,1714327915240,-573.53,0.00012602,2]
[10372,1714327915253,-500.0,0.00012602,2]
[10373,1714327915266,-1458.57,0.00012602,2]
[10375,1714327915290,-1120.55,0.00012602,2]
[10376,1714327915302,-500.0,0.00012602,2]
[10377,1714327915314,-2030.24,0.00012602,2]
[10378,1714327915330,-695.84,0.00012602,2]
[10379,1714327915341,-2625.9,0.00012602,2]
[10380,1714327915358,-500.0,0.00012602,2]
[10381,1714327915370,-500.0,0.00012602,2]
[10382,1714327915384,-1953.6,0.00012602,2]
[10383,1714327915397,-589.08,0.00012602,2]
[10384,1714327915410,-3343.08,0.00012602,2]
[10385,1714327915423,-532.45,0.00012602,2]
[10386,1714327915436,-21057.08,0.00012602,2]
[10387,1714327915449,-879.3,0.00012602,2]
[10388,1714327915461,-2353.99,0.00012602,2]
[10389,1714327915473,-2376.77,0.00012602,2]
[10390,1714327915484,-555.29,0.00012602,2]
[10391,1714327915497,-1235.53,0.00012602,2]
[10392,1714327915510,-500.0,0.00012602,2]
[10393,1714327915522,-500.0,0.00012602,2]
[10394,1714327915535,-2235.31,0.00012602,2]
[10395,1714327915547,-1122.4,0.00012602,2]
[10396,1714327915559,-1353.02,0.00012602,2]
[10397,1714327915571,-500.0,0.00012602,2]
[10398,1714327915584,-500.0,0.00012602,2]
[10399,1714327915596,-621.45,0.00012602,2]
[10400,1714327915608,-2439.23,0.00012602,2]
[10401,1714327915621,-500.0,0.00012602,2]
[10402,1714327915638,-1223.0,0.00012602,2]
[10403,1714327915651,-3429.51,0.00012602,2]
[10404,1714327915664,-1593.98,0.00012602,2]
[10405,1714327915675,-839.55,0.00012602,2]
[10406,1714327915687,-500.0,0.00012602,2]
[10407,1714327915699,-4638.6,0.00012602,2]
[10409,1714327915722,-746.95,0.00012602,2]
[10410,1714327915735,-10234.54,0.00012602,2]
[10411,1714327915746,-1870.8,0.00012602,2]
[10412,1714327915758,-500.0,0.00012602,2]
[10413,1714327915770,-921.27,0.00012602,2]
[10414,1714327915782,-500.0,0.00012602,2]
[10415,1714327915794,-955.6,0.00012602,2]
[10416,1714327915806,-1545.21,0.00012602,2]
[10417,1714327915819,-992.06,0.00012602,2]
[10418,1714327915830,-1142.19,0.00012602,2]
[10419,1714327915841,-2631.26,0.00012602,2]
[10420,1714327915851,-3093.06,0.00012602,2]
[10421,1714327915863,-1877.43,0.00012602,2]
[10422,1714327915874,-2796.37,0.00012602,2]
[10423,1714327915885,-500.0,0.00012602,2]
[10425,1714327915908,-514.74,0.00012602,2]
[10426,1714327915918,-7994.55,0.00012602,2]
[10427,1714327915929,-839.39,0.00012602,2]
[10428,1714327915941,-4270.94,0.00012602,2]
[10429,1714327915951,-500.0,0.00012602,2]
[10430,1714327915963,-500.0,0.00012602,2]
[10431,1714327915974,-823.21,0.00012602,2]
[10432,1714327915985,-5489.49,0.00012602,2]
[10433,1714327915996,-1263.54,0.00012602,2]
[10435,1714327916019,-500.0,0.00012602,2]
[10436,1714327916030,-3085.94,0.00012602,2]
[10437,1714327916041,-500.0,0.00012602,2]
[10438,1714327916052,-2399.9,0.00012602,2]
[10439,1714327916062,-500.0,0.00012602,2]
[10440,1714327916073,-500.0,0.00012602,2]
[10441,1714327916084,-1594.33,0.00012602,2]
[10442,1714327916095,-500.0,0.00012602,2]
[10443,1714327916106,-1019.65,0.00012602,2]
[10444,1714327916117,-1414.1,0.00012602,2]
[10445,1714327916127,-596.29,0.00012602,2]
[10446,1714327916138,-1435.2,0.00012602,2]
[10447,1714327916150,-1065.2,0.00012602,2]
[10448,1714327916160,-1065.58,0.00012602,2]
[10449,1714327916171,-1989.31,0.00012602,2]
[10450,1714327916182,-6721.92,0.00012602,2]
[10451,1714327916192,-500.0,0.00012602,2]
[10452,1714327916203,-14603.79,0.00012602,2]
[10453,1714327916214,-500.0,0.00012602,2]
[10455,1714327916236,-1554.38,0.00012602,2]
[10456,1714327916246,-4628.19,0.00012602,2]
[10457,1714327916257,-1003.44,0.00012602,2]
[10458,1714327916292,-2391.0,0.00012602,2]
[10459,1714327916302,-992.68,0.00012602,2]
[10460,1714327916314,-500.0,0.00012602,2]
[10461,1714327916325,-943.28,0.00012602,2]
[10462,1714327916336,-2685.78,0.00012602,2]
[10463,1714327916350,-6676.64,0.00012602,2]
[10464,1714327916361,-553.68,0.00012602,2]
[10465,1714327916396,-500.0,0.00012602,2]
[10466,1714327916407,-990.93,0.00012602,2]
[10467,1714327916419,-10456.85,0.00012602,2]
[10468,1714327916430,-2871.06,0.00012602,2]
[10469,1714327916441,-1118.21,0.00012602,2]
[10470,1714327916452,-3376.14,0.00012602,2]
[10471,1714327916464,-1935.27,0.00012602,2]
[10472,1714327916475,-1916.73,0.00012602,2]
[10473,1714327916487,-8977.28,0.00012602,2]
[10474,1714327916497,-1187.31,0.00012602,2]
[10475,1714327916509,-7588.89,0.00012602,2]
[10476,1714327916519,-500.0,0.00012602,2]
[10477,1714327916530,-688.63,0.00012602,2]
[10478,1714327916541,-1439.11,0.00012602,2]
[10479,1714327916552,-500.0,0.00012602,2]
[10480,1714327916563,-2869.47,0.00012602,2]
[10481,1714327916575,-1606.09,0.00012602,2]
[10482,1714327916586,-4369.22,0.00012602,2]
[10483,1714327916597,-1432.5,0.00012602,2]
[10484,1714327916608,-727.82,0.00012602,2]
[10485,1714327916619,-531.19,0.00012602,2]
[10486,1714327916630,-4765.67,0.00012602,2]
[10487,1714327916640,-839.45,0.00012602,2]
[10488,1714327916651,-3999.41,0.00012602,2]
[10489,1714327916662,-43270.69,0.00012602,2]
[10490,1714327916673,-500.47,0.00012602,2]
[10491,1714327916683,-761.81,0.00012602,2]
[10492,1714327916694,-4906.24,0.00012602,2]
[10493,1714327916705,-500.0,0.00012602,2]
[10494,1714327916716,-7136.72,0.00012602,2]
[10495,1714327916727,-6529.31,0.00012602,2]
[10496,1714327916738,-525.49,0.00012602,2]
[10497,1714327916749,-581.86,0.00012602,2]
[10498,1714327916759,-500.0,0.00012602,2]
[10499,1714327916770,-2308.51,0.00012602,2]
[10500,1714327916781,-1102.33,0.00012602,2]
[10501,1714327916791,-2065.13,0.00012602,2]
[10502,1714327916802,-1398.74,0.00012602,2]
[10503,1714327916813,-10142.44,0.00012602,2]
[10504,1714327916824,-500.0,0.00012602,2]
[10505,1714327916835,-500.0,0.00012602,2]
[10506,1714327916846,-1022.43,0.00012602,2]
[10507,1714327916857,-1124.4,0.00012602,2]
[10508,1714327916867,-2500.48,0.00012602,2]
[10509,1714327916879,-3084.4,0.00012602,2]
[10510,1714327916889,-1168.0,0.00012602,2]
[10511,1714327916899,-549.87,0.00012602,2]
[10512,1714327916910,-150.0,0.00012728,2]
[10513,1714327916920,-150.0,0.00012728,2]
[10514,1714327916932,-150.0,0.00012728,2]
[10515,1714327916943,-150.0,0.00012728,2]
[10516,1714327916954,-150.0,0.00012728,2]
[10517,1714327916964,-150.0,0.00012728,2]
[10518,1714327916975,-328.07,0.00012728,2]
[10519,1714327916986,-150.0,0.00012728,2]
[10520,1714327916997,-701.46,0.00012728,2]
[10521,1714327917008,-162.92,0.00012728,2]
[10522,1714327917018,-701.17,0.00012728,2]
[10523,1714327917030,-419.34,0.00012728,2]
[10525,1714327917051,-162.92,0.00012728,2]
[10526,1714327917062,-350.62,0.00012728,2]
[10527,1714327917073,-720.0,0.0001274,2]
[10528,1714327917085,-239.97742286,0.00012789,2]
[10529,1714327917096,-2200.0,0.000128,4]
[10531,1714327917118,-1436.08,0.0001285,6]
[10532,1714327917128,-110894.79,0.0001285,6]
[10533,1714327917139,-500.0,0.00012876,2]
[10534,1714327917150,-500.0,0.00012876,2]
[10535,1714327917161,-500.0,0.00012876,2]
[10536,1714327917171,-500.0,0.00012876,2]
[10537,1714327917182,-1153.01,0.00012876,2]
[10538,1714327917193,-515.13,0.00012876,2]
[10539,1714327917203,-387.19740578,0.00012876,2]
[10540,1714327917214,-510.39,0.00012876,2]
[10541,1714327917224,-506.65,0.00012876,2]
[10542,1714327917235,-500.0,0.00012876,2]
[10543,1714327917245,-1913.25,0.00012876,2]
[10544,1714327917255,-603.97758819,0.00012876,2]
[10545,1714327917266,-500.0,0.00012876,2]
[10546,1714327917277,-1006.97,0.00012876,2]
[10547,1714327917288,-524.32,0.00012876,2]
[10548,1714327917299,-500.0,0.00012876,2]
[10549,1714327917309,-620.38,0.00012876,2]
[10550,1714327917320,-500.0,0.00012876,2]
[10551,1714327917332,-500.0,0.00012876,2]
[10552,1714327917345,-538.92,0.00012876,2]
[10553,1714327917358,-519.49,0.00012876,2]
[10554,1714327917368,-663.22,0.00012876,2]
[10555,1714327917379,-658.28,0.00012876,2]
[10556,1714327917391,-895.1,0.00012876,2]
[10557,1714327917402,-500.0,0.00012876,2]
[10558,1714327917414,-500.0,0.00012876,2]
[10559,1714327917427,-500.0,0.00012876,2]
[10560,1714327917438,-500.0,0.00012876,2]
[10561,1714327917448,-500.0,0.00012876,2]
[10562,1714327917459,-500.0,0.00012876,2]
[10563,1714327917469,-349.04141706,0.00012876,2]
[10564,1714327917480,-500.0,0.00012876,2]
[10565,1714327917491,-500.0,0.00012876,2]
[10566,1714327917502,-534.74,0.00012876,2]
[10567,1714327917513,-825.87,0.00012876,2]
[10568,1714327917524,-1185.83,0.00012876,2]
[10569,1714327917534,-668.26,0.00012876,2]
[10570,1714327917544,-605.89477936,0.00012876,2]
[10571,1714327917555,-500.0,0.00012876,2]
[10572,1714327917566,-500.0,0.00012876,2]
[10573,1714327917577,-1318.03,0.00012876,2]
[10574,1714327917588,-500.0,0.00012876,2]
[10575,1714327917599,-500.0,0.00012876,2]
[10576,1714327917609,-513.15,0.00012876,2]
[10577,1714327917620,-515.14,0.00012876,2]
[10578,1714327917637,-566.22,0.00012876,2]
[10579,1714327917648,-916.96,0.00012876,2]
[10580,1714327917659,-1561.83,0.00012876,2]
[10581,1714327917671,-1227.32,0.00012876,2]
[10582,1714327917681,-500.0,0.00012876,2]
[10583,1714327917693,-500.0,0.00012876,2]
[10584,1714327917704,-1431.64,0.00012876,2]
[10585,1714327917715,-500.0,0.00012876,2]
[10586,1714327917726,-500.0,0.00012876,2]
[10587,1714327917737,-500.0,0.00012876,2]
[10588,1714327917748,-596.77,0.00012876,2]
[10589,1714327917759,-1043.91,0.00012876,2]
[10590,1714327917770,-551.25,0.00012876,2]
[10591,1714327917781,-500.0,0.00012876,2]
[10592,1714327918292,-850.44,0.00012876,2]
[10593,1714327918302,-500.0,0.00012876,2]
[10594,1714327918312,-500.0,0.00012876,2]
[10595,1714327918321,-500.0,0.00012876,2]
[10596,1714327918331,-521.83,0.00012876,2]
[10597,1714327918341,-635.46,0.00012876,2]
[10598,1714327918355,-500.0,0.00012876,2]
[10599,1714327918364,-500.0,0.00012876,2]
[10600,1714327918374,-1366.8,0.00012876,2]
[10601,1714327918383,-500.0,0.00012876,2]
[10602,1714327918394,-500.0,0.00012876,2]
[10603,1714327918404,-479.02915698,0.00012876,2]
[10604,1714327918414,-500.0,0.00012876,2]
[10605,1714327918423,-492.02081854,0.00012876,2]
[10606,1714327918433,-513.46,0.00012876,2]
[10607,1714327918443,-2601.22,0.00012876,2]
[10608,1714327918453,-500.0,0.00012876,2]
[10609,1714327918462,-500.0,0.00012876,2]
[10610,1714327918471,-472.23402923,0.00012876,2]
[10611,1714327918480,-584.86,0.00012876,2]
[10612,1714327918490,-500.0,0.00012876,2]
[10613,1714327918499,-500.03,0.00012876,2]
[10614,1714327918508,-500.0,0.00012876,2]
[10615,1714327918517,-520.57,0.00012876,2]
[10616,1714327918526,-500.0,0.00012876,2]
[10617,1714327918536,-500.0,0.00012876,2]
[10618,1714327918545,-1104.97,0.00012876,2]
[10619,1714327918554,-551.93,0.00012876,2]
[10620,1714327918563,-878.68,0.00012876,2]
[10621,1714327918572,-597.98,0.00012876,2]
[10622,1714327918582,-500.0,0.00012876,2]
[10623,1714327918590,-875.43,0.00012876,2]
[10624,1714327918600,-500.0,0.00012876,2]
[10625,1714327918610,-500.0,0.00012876,2]
[10626,1714327918620,-500.0,0.00012876,2]
[10627,1714327918630,-500.0,0.00012876,2]
[10628,1714327918640,-500.0,0.00012876,2]
[10629,1714327918650,-1003.16,0.00012876,2]
[10630,1714327918659,-634.21,0.00012876,2]
[10631,1714327918669,-500.0,0.00012876,2]
[10632,1714327918679,-1071.7,0.00012876,2]
[10633,1714327918688,-574.37,0.00012876,2]
[10634,1714327918697,-500.0,0.00012876,2]
[10635,1714327918706,-500.0,0.00012876,2]
[10636,1714327918715,-825.25,0.00012876,2]
[10637,1714327918724,-500.0,0.00012876,2]
[10638,1714327918734,-572.1,0.00012876,2]
[10639,1714327918743,-649.42,0.00012876,2]
[10640,1714327918752,-500.0,0.00012876,2]
[10641,1714327918761,-840.05,0.00012876,2]
[10642,1714327918770,-1083.93,0.00012876,2]
[10643,1714327918780,-500.0,0.00012876,2]
[10644,1714327918789,-500.0,0.00012876,2]
[10645,1714327918799,-1452.61,0.00012876,2]
[10646,1714327918808,-500.0,0.00012876,2]
[10647,1714327918819,-1374.95,0.00012876,2]
[10648,1714327918829,-500.0,0.00012876,2]
[10649,1714327918840,-1053.42,0.00012876,2]
[10650,1714327918850,-535.46,0.00012876,2]
[10651,1714327918859,-642.64,0.00012876,2]
[10652,1714327918868,-500.0,0.00012876,2]
[10653,1714327918877,-961.49,0.00012876,2]
[10654,1714327918887,-621.25,0.00012876,2]
[10655,1714327918896,-1524.72,0.00012876,2]
[10656,1714327918905,-984.45,0.00012876,2]
[10657,1714327918914,-1732.82,0.00012876,2]
[10658,1714327918923,-643.01,0.00012876,2]
[10659,1714327918932,-835.84,0.00012876,2]
[10660,1714327918941,-932.25,0.00012876,2]
[10661,1714327918950,-537.6,0.00012876,2]
[10662,1714327918959,-524.24,0.00012876,2]
[10663,1714327918969,-998.84,0.00012876,2]
[10664,1714327918978,-796.96,0.00012876,2]
[10665,1714327918987,-1464.99,0.00012876,2]
[10666,1714327918996,-172.69011073,0.00012876,2]
[10667,1714327919005,-352.25263973,0.00012876,2]
[10668,1714327919015,-900.78,0.00012876,2]
[10669,1714327919024,-749.47,0.00012876,2]
[10670,1714327919033,-531.18,0.00012876,2]
[10671,1714327919043,-1189.44,0.00012876,2]
[10672,1714327919052,-1439.92,0.00012876,2]
[10673,1714327919061,-1897.13,0.00012876,2]
[10674,1714327919071,-502.52,0.00012876,2]
[10675,1714327919080,-652.39,0.00012876,2]
[10676,1714327919089,-378.04888931,0.00012876,2]
[10677,1714327919099,-500.0,0.00012876,2]
[10678,1714327919108,-500.0,0.00012876,2]
[10679,1714327919118,-795.46,0.00012876,2]
[10680,1714327919127,-500.0,0.00012876,2]
[10681,1714327919136,-500.0,0.00012876,2]
[10682,1714327919146,-500.0,0.00012876,2]
[10683,1714327919159,-2448.4,0.00012876,2]
[10684,1714327919168,-500.0,0.00012876,2]
[10685,1714327919177,-1078.81,0.00012876,2]
[10686,1714327919187,-500.0,0.00012876,2]
[10687,1714327919196,-1630.06,0.00012876,2]
[10688,1714327919206,-500.0,0.00012876,2]
[10689,1714327919215,-909.28,0.00012876,2]
[10690,1714327919224,-1319.4,0.00012876,2]
[10691,1714327919234,-500.0,0.00012876,2]
[10692,1714327919243,-1798.47,0.00012876,2]
[10693,1714327919253,-1245.89,0.00012876,2]
[10694,1714327919262,-500.0,0.00012876,2]
[10695,1714327919272,-584.91,0.00012876,2]
[10696,1714327919282,-869.51,0.00012876,2]
[10697,1714327919291,-775.65,0.00012876,2]
[10698,1714327919301,-849.06,0.00012876,2]
[10699,1714327919311,-500.0,0.00012876,2]
[10700,1714327919320,-500.0,0.00012876,2]
[10701,1714327919330,-236.56128803,0.00012876,2]
[10702,1714327919339,-500.0,0.00012876,2]
[10703,1714327919353,-500.0,0.00012876,2]
[10704,1714327919362,-545.78,0.00012876,2]
[10705,1714327919372,-2005.3,0.00012876,2]
[10706,1714327919382,-678.75,0.00012876,2]
[10707,1714327919391,-558.96,0.00012876,2]
[10708,1714327919401,-500.0,0.00012876,2]
[10709,1714327919411,-905.49,0.00012876,2]
[10710,1714327919420,-1355.48,0.00012876,2]
[10711,1714327919431,-500.0,0.00012876,2]
[10712,1714327919440,-500.0,0.00012876,2]
[10713,1714327919450,-500.0,0.00012876,2]
[10714,1714327919460,-1562.19,0.00012876,2]
[10715,1714327919470,-1336.96,0.00012876,2]
[10716,1714327919479,-500.0,0.00012876,2]
[10717,1714327919488,-582.07,0.00012876,2]
[10718,1714327919498,-1231.29,0.00012876,2]
[10719,1714327919507,-545.02,0.00012876,2]
[10720,1714327919517,-554.2,0.00012876,2]
[10721,1714327919527,-1111.8,0.00012876,2]
[10722,1714327919537,-500.0,0.00012876,2]
[10723,1714327919546,-926.22,0.00012876,2]
[10724,1714327919555,-677.88,0.00012876,2]
[10725,1714327919565,-500.0,0.00012876,2]
[10726,1714327919574,-1541.22,0.00012876,2]
[10727,1714327919584,-578.91,0.00012876,2]
[10728,1714327919593,-1220.25,0.00012876,2]
[10729,1714327919603,-500.0,0.00012876,2]
[10730,1714327919613,-780.64,0.00012876,2]
[10731,1714327919623,-1028.06,0.00012876,2]
[10732,1714327919633,-500.0,0.00012876,2]
[10733,1714327919642,-1073.37,0.00012876,2]
[10734,1714327919652,-500.0,0.00012876,2]
[10735,1714327919661,-94.14945822,0.00012876,2]
[10736,1714327920408,-2715.02054178,0.00012876,2]
[10737,1714327920418,-602.89,0.00012876,2]
[10738,1714327920428,-500.0,0.00012876,2]
[10739,1714327920438,-500.0,0.00012876,2]
[10740,1714327920448,-500.0,0.00012876,2]
[10741,1714327920457,-500.0,0.00012876,2]
[10742,1714327920466,-1594.35,0.00012876,2]
[10743,1714327920475,-797.41,0.00012876,2]
[10744,1714327920485,-500.0,0.00012876,2]
[10745,1714327920494,-624.48,0.00012876,2]
[10746,1714327920505,-933.77,0.00012876,2]
[10747,1714327920514,-500.0,0.00012876,2]
[10749,1714327920535,-500.0,0.00012876,2]
[10751,1714327920555,-2313.19,0.00012876,2]
[10753,1714327920574,-1362.9,0.00012876,2]
[10754,1714327920585,-1006.23,0.00012876,2]
[10755,1714327920594,-500.0,0.00012876,2]
[10756,1714327920604,-500.0,0.00012876,2]
[10757,1714327920614,-945.42,0.00012876,2]
[10758,1714327920623,-500.0,0.00012876,2]
[10759,1714327920634,-753.84,0.00012876,2]
[10760,1714327920644,-1229.87,0.00012876,2]
[10761,1714327920654,-503.33,0.00012876,2]
[10762,1714327920665,-500.0,0.00012876,2]
[10763,1714327920676,-713.69,0.00012876,2]
[10764,1714327920687,-1670.88,0.00012876,2]
[10765,1714327920697,-500.0,0.00012876,2]
[10766,1714327920707,-742.48,0.00012876,2]
[10767,1714327920717,-768.77,0.00012876,2]
[10769,1714327920738,-687.59,0.00012876,2]
[10771,1714327920757,-1778.24,0.00012876,2]
[10773,1714327920776,-507.64,0.00012876,2]
[10774,1714327920785,-515.83,0.00012876,2]
[10775,1714327920795,-500.0,0.00012876,2]
[10776,1714327920804,-308.95,0.00012876,2]
[10777,1714327920814,-500.0,0.00012876,2]
[10778,1714327920823,-1406.26,0.00012876,2]
[10779,1714327920834,-1255.01,0.00012876,2]
[10780,1714327920843,-597.93,0.00012876,2]
[10781,1714327920853,-1615.77,0.00012876,2]
[10782,1714327920862,-535.6,0.00012876,2]
[10783,1714327920872,-500.0,0.00012876,2]
[10784,1714327920881,-500.0,0.00012876,2]
[10785,1714327920890,-500.0,0.00012876,2]
[10786,1714327920900,-500.0,0.00012876,2]
[10787,1714327920909,-517.5,0.00012876,2]
[10788,1714327920919,-963.36,0.00012876,2]
[10789,1714327920928,-595.42,0.00012876,2]
[10790,1714327920937,-500.0,0.00012876,2]
[10791,1714327920947,-894.73,0.00012876,2]
[10792,1714327920956,-548.3,0.00012876,2]
[10793,1714327920965,-999.0,0.00012876,2]
[10794,1714327920974,-542.11,0.00012876,2]
[10795,1714327921202,-500.0,0.00012876,2]
[10796,1714327921212,-688.85,0.00012876,2]
[10797,1714327921222,-1843.67,0.00012876,2]
[10798,1714327921231,-2215.33,0.00012876,2]
[10799,1714327921241,-626.13,0.00012876,2]
[10800,1714327921251,-500.0,0.00012876,2]
[10801,1714327921261,-500.0,0.00012876,2]
[10803,1714327921281,-517.49,0.00012876,2]
[10804,1714327921291,-500.0,0.00012876,2]
[10805,1714327921301,-996.14,0.00012876,2]
[10806,1714327921310,-1997.75,0.00012876,2]
[10807,1714327921320,-500.0,0.00012876,2]
[10809,1714327921338,-561.44,0.00012876,2]
[10811,1714327921363,-500.0,0.00012876,2]
[10813,1714327921383,-870.0,0.00012876,2]
[10815,1714327921404,-1614.43,0.00012876,2]
[10817,1714327921425,-500.0,0.00012876,2]
[10819,1714327921444,-973.03,0.00012876,2]
[10821,1714327921464,-500.0,0.00012876,2]
[10823,1714327921483,-1618.32,0.00012876,2]
[10825,1714327921502,-1065.37,0.00012876,2]
[10827,1714327921522,-500.0,0.00012876,2]
[10829,1714327921541,-593.64,0.00012876,2]
[10831,1714327921561,-525.3,0.00012876,2]
[10833,1714327921581,-501.35,0.00012876,2]
[10835,1714327921600,-511.31,0.00012876,2]
[10837,1714327921619,-500.0,0.00012876,2]
[10839,1714327921641,-1221.56,0.00012876,2]
[10841,1714327921659,-500.0,0.00012876,2]
[10842,1714327921668,-500.0,0.00012876,2]
[10843,1714327921678,-1444.15,0.00012876,2]
[10844,1714327921688,-574.0,0.00012876,2]
[10845,1714327921697,-601.5,0.00012876,2]
[10846,1714327921707,-904.78,0.00012876,2]
[10847,1714327921716,-536.52,0.00012876,2]